[Event "Indian Blitz Championship 2023"]
[Site "Nashik"]
[Date "2024.03.07"]
[Round "6.2"]
[White "Hari Madhavan N B"]
[Black "Manish Anto Cristiano F"]
[Result "1-0"]
[ECO "B52"]
[WhiteElo "2395"]
[BlackElo "2286"]
[Annotator "TA"]
[PlyCount "97"]
[EventDate "2024.03.07"]
[EventType "blitz"]
[EventCountry "IND"]
[SourceTitle "playchess.com"]
[Source "ChessBase"]
[SourceQuality "1"]
[TimeControl "180+2"]

{[%evp 12,96,8,0,0,0,8,-27,-25,-20,-18,-16,8,16,12,12,27,0,23,-8,0,0,3,4,1,-2,0,0,0,-7,0,-23,-22,-73,-62,-96,-44,-39,-62,-104,-112,-107,-104,-110,-103,-198,-167,-338,-226,-984,-964,-861,-861,-851,-463,-1133,-1118,-1085,-1085,-5014,-1605,-29973,-29973,-5265,-295,-358,-334,-324,-335,-328,-337,-393,-393,-1527,-1342,-993,-381,-384,-262,-245,0,0,0,0,29997,29998,29999]} 1. e4 {[%emt 0:00:05]} c5 {[%emt 0:00:01]} 2. Nf3 {[%emt 0:00:02]} d6 {[%emt 0:00:01]} 3. Bb5+ {[%emt 0:00:01]} Bd7 {[%emt 0:00:01]} 4. Bxd7+ {[%emt 0:00:02]} Qxd7 {[%emt 0:00:01]} 5. O-O {[%emt 0:00:02]} Nf6 {[%emt 0:00:02]} 6. Re1 {[%emt 0:00:01]} Nc6 {[%emt 0:00:01]} 7. c4 {[%emt 0:00:02]} g6 {[%emt 0:00:01]} 8. Nc3 {[%emt 0:00:05]} Bg7 {[%emt 0:00:02]} 9. d3 {[%emt 0:00:11]} O-O {[%emt 0:00:02] Black has an edge.} 10. a3 {[%emt 0:00:01]} a6 {[%emt 0:00:17]} 11. Rb1 {[%emt 0:00:04]} a5 {[%emt 0:00:17]} 12. h3 {[%emt 0:00:07]} Ne8 {[%emt 0:00:09]} 13. Be3 {[%emt 0:00:07]} Nc7 {[%emt 0:00:08]} 14. Qd2 {[%emt 0:00:04]} Ne6 {[%emt 0:00:05]} 15. Bh6 {[%emt 0:00:03]} Ned4 {[%emt 0:00:02]} 16. Nxd4 {[%emt 0:00:04]} Nxd4 {[%emt 0:00:02]} 17. Bxg7 {[%emt 0:00:02]} Kxg7 {[%emt 0:00:02]} 18. Ne2 {[%emt 0:00:27]} Nxe2+ {[%emt 0:00:24]} 19. Rxe2 {[%emt 0:00:01]} b5 {[%emt 0:00:04]} 20. cxb5 {[%emt 0:00:13]} Qxb5 {[%emt 0:00:01]} 21. Qc3+ {[%emt 0:00:02]} f6 {[%emt 0:00:11]} 22. Re3 {[%emt 0:00:09]} (22. f4 $11 {keeps the balance.}) 22... Rab8 {[%emt 0:00:09]} 23. h4 {[%emt 0:00:04]} Qb3 {[%emt 0:00:21]} (23... Qa4 $17 24. Qd2 Rb7) 24. Qxa5 $15 {[%emt 0:00:27][%cal Od3d4]} Qc2 {[%emt 0:00:01]} 25. Qe1 {[%emt 0:00:23]} Rxb2 {[%emt 0:00:04]} 26. Rxb2 {[%emt 0:00:01]} Qxb2 $17 {[%emt 0:00:02][%mdl 4096] Endgame. KQR-KQR} 27. Qa5 {[%emt 0:00:01] Repels Ra8} Rb8 {[%emt 0:00:14]} 28. h5 {[%emt 0:00:12]} Qa1+ {[%emt 0:00:07]} (28... gxh5 29. Qa7 Qb7 30. Qa4 $17) 29. Kh2 $2 {[%emt 0:00:13]} (29. Re1 {was the only defense.} Rb1 30. Rxb1 Qxb1+ 31. Kh2 Qxd3 32. hxg6) 29... Qe5+ {[%emt 0:00:02]} (29... gxh5 30. e5 dxe5 (30... fxe5 $2 31. Qa7 $18) 31. Qc7 $18) 30. f4 $2 {[%emt 0:00:18]} (30. g3) 30... Qxf4+ $19 {[%emt 0:00:14]} 31. Rg3 {[%emt 0:00:01]} Rb3 {[%emt 0:00:12]} 32. Qa6 {[%emt 0:00:10]} g5 {[%emt 0:00:23]} 33. Qa7 {[%emt 0:00:12]} (33. h6+ $142 Kxh6 34. Qc4) 33... Qe5 {[%emt 0:00:10]} (33... Rxd3 34. Qxe7+ Kh6 35. Qf8+ Kxh5 36. Qf7+ Kh6 37. Qf8+ Kh5 38. Qf7+ Kh6 39. Qf8+ Kh5 $11) 34. Qa6 {[%emt 0:00:05]} Rc3 {[%emt 0:00:03][%cal Oc5c4]} 35. Kh3 {[%emt 0:00:05] [#]} c4 $1 {[%emt 0:00:01][%mdl 512]} 36. Rf3 {[%emt 0:00:02] [#]} (36. h6+ Kxh6) 36... g4+ $1 {[%emt 0:00:05][%mdl 512]} 37. Kxg4 {[%emt 0:00:02]} Rxd3 $2 {[%emt 0:00:03]} (37... cxd3 38. h6+ Kxh6) 38. Qxc4 {[%emt 0:00:02]} Qg5+ {[%emt 0:00:02]} 39. Kh3 {[%emt 0:00:01]} Qxh5+ {[%emt 0:00:01]} 40. Kg3 {[%emt 0:00:01]} Rd2 {[%emt 0:00:03] ( -> ...Qg5+)} 41. Qf1 {[%emt 0:00:03]} Ra2 {[%emt 0:00:03]} 42. Qg1 $2 {[%emt 0:00:03]} (42. Rd3) 42... Qe5+ {[%emt 0:00:02]} 43. Kh3 {[%emt 0:00:03]} Qxe4 $2 {[%emt 0:00:02]} (43... Ra1 44. Rf1 Qh5+ (44... Rxa3+ $2 45. g3 $19) 45. Kg3 Rxa3+ 46. Rf3 Qg5+ 47. Kh2 Rxf3 48. gxf3 Qxg1+ 49. Kxg1 f5) 44. Qf1 {[%emt 0:00:01]} Qe6+ {[%emt 0:00:02]} 45. Kh2 {[%emt 0:00:00]} Qe5+ $2 {[%emt 0:00:00]} (45... Kf7 $19 {Threatens to win with ...Qe5+.} 46. Qd3 Qe5+ 47. Rg3 Re2 48. Qxh7+ Ke8 49. Qg8+ Kd7 50. Qg4+ Kc7 51. Qc4+ Kd7 52. Qg4+ Kc7 53. Qc4+ Kd7 54. Qa4+ Ke6 55. Qc4+ d5 56. Qc8+ Kd6) 46. Rg3+ $11 {[%emt 0:00:02]} Kf8 {[%emt 0:00:03]} 47. Qf3 {[%emt 0:00:01] White wants to mate with Qa8+.} (47. Qc4 $5 Qh5+ $8 (47... Rxa3 48. Qg8#) 48. Rh3 Qe5+ 49. Rg3 Qh5+ (49... Rxa3 50. Qg8#) 50. Rh3 $11) 47... Rb2 $2 {[%emt 0:00:04][%mdl 8192]} (47... d5 $11 48. Qg4 e6 (48... Rxa3 49. Qg8#)) 48. Qa8+ {[%emt 0:00:01]} Kf7 {[%emt 0:00:03]} 49. Qg8# {[%emt 0:00:02] Weighted Error Value: White=0.96/Black=0.74.  Loses game:     	---       	Black=1      Missed win:     	---       	Black=1      Mistake:       	White=5     	Black=1      Inaccurate:     	White=5     	Black=1      OK:         	White=7     	Black=7      Best:        	White=4     	Black=4} 1-0

[Event "Indian Blitz Championship 2023"]
[Site "Nashik"]
[Date "2024.03.07"]
[Round "6.3"]
[White "Aakash Sharadchandra, Dalvi"]
[Black "Wagh Suyog"]
[Result "1-0"]
[ECO "E15"]
[WhiteElo "2291"]
[BlackElo "2250"]
[Annotator "TA"]
[PlyCount "70"]
[EventDate "2024.03.07"]
[EventType "blitz"]
[EventCountry "IND"]
[SourceTitle "playchess.com"]
[Source "ChessBase"]
[SourceQuality "1"]
[TimeControl "180+2"]

{[%evp 18,70,12,8,0,0,18,14,19,0,0,-31,-33,-43,-18,-23,0,-33,0,-22,0,-38,-46,-31,-42,-31,-17,-46,-12,-13,-5,-11,300,281,286,269,299,288,304,291,275,270,318,206,209,74,67,77,419,442,869,411,1078,1122,1016]} 1. d4 {[%emt 0:00:01]} Nf6 {[%emt 0:00:05]} 2. c4 {[%emt 0:00:01]} e6 {[%emt 0:00:01]} 3. Nf3 {[%emt 0:00:01]} b6 {[%emt 0:00:02]} 4. g3 {[%emt 0:00:01]} Ba6 {[%emt 0:00:01]} 5. b3 {[%emt 0:00:01]} Bb4+ {[%emt 0:00:01]} 6. Bd2 {[%emt 0:00:01]} Be7 {[%emt 0:00:02]} 7. Nc3 {[%emt 0:00:01]} d5 {[%emt 0:00:01]} 8. cxd5 {[%emt 0:00:01]} exd5 {[%emt 0:00:01]} 9. Bg2 {[%emt 0:03:12]} O-O {[%emt 0:00:03]} 10. O-O {[%emt 0:00:00]} Nbd7 {[%emt 0:00:01]} 11. a3 {[%emt 0:00:00]} Re8 {[%emt 0:00:01]} 12. b4 {[%emt 0:00:00]} c5 {[%emt 0:00:00] The position is equal.} 13. bxc5 {[%emt 0:00:00]} bxc5 {[%emt 0:00:01]} 14. dxc5 {[%emt 0:00:00]} Bxc5 {[%emt 0:00:01] [#] And now ...d4 would win.} 15. Bg5 {[%emt 0:00:00][%cal Oa1c1]} Qa5 {[%emt 0:00:48]} 16. Bd2 {[%emt 0:00:00][%cal Oc3d5]} Qd8 {[%emt 0:00:32]} (16... Bxa3 $2 17. Qb3 $18) 17. Bg5 {[%emt 0:00:00][%cal Oa1c1]} Qa5 {[%emt 0:00:00]} 18. Bd2 {[%emt 0:00:00][%cal Oc3d5]} Qd8 {[%emt 0:00:01] ...d4 would now be deadly.} (18... Bxa3 $2 19. Qb3 $18) 19. Bg5 {[%emt 0:00:00][%cal Oa1c1]} h6 {[%emt 0:01:58]} 20. Bxf6 {[%emt 0:00:00]} Nxf6 {[%emt 0:00:00]} 21. Nd4 {[%emt 0:00:00]} Bc4 {[%emt 0:00:00] This pair of bishops is nice.} 22. Re1 {[%emt 0:00:00]} Qa5 {[%emt 0:00:00]} 23. Qd2 {[%emt 0:00:00]} Rab8 {[%emt 0:00:00][%cal Ob8b2] [#] Threatens to win with ...Rb2!} (23... Bxa3 $2 24. Nc2 $18) 24. e3 {[%emt 0:00:00][%cal Be2e3,Be3e4][%mdl 32]} a6 $2 {[%emt 0:00:00][%mdl 8192]} (24... Bxa3 25. Nc6 Qb6 26. Nxd5 (26. Nxb8 Bb4 $16) 26... Nxd5 (26... Qxc6 $2 27. Ne7+ Bxe7 28. Bxc6 $18) 27. Bxd5 $14 (27. Nxb8 Bb4 $15)) (24... Qa6 $11 {and Black has nothing to worry.}) 25. Nc6 $1 $18 {[%emt 0:00:00][%csl LRa5,LRb8,LRd5]} Qc7 {[%emt 0:00:00]} 26. Nxb8 {[%emt 0:00:00]} Qxb8 {[%emt 0:00:00]} 27. Nxd5 {[%emt 0:00:00]} ({Weaker is} 27. Bxd5 Qd6 $16) 27... Bxd5 {[%emt 0:00:02]} 28. Bxd5 {[%emt 0:00:00]} Rd8 {[%emt 0:00:00]} 29. e4 {[%emt 0:00:00]} Ng4 {[%emt 0:00:01]} 30. Re2 {[%emt 0:00:06] aiming for Kg2.} Qe5 {[%emt 0:00:06]} 31. Rd1 {[%emt 0:00:05]} (31. Rb1 $18 {[%cal Od5f7] and White stays clearly on top. Strongly threatening Bxf7+!} Qh5 32. h4 Nxf2 33. Rxf2) 31... Qh5 $16 {[%emt 0:00:05]} 32. h4 {[%emt 0:00:10][%cal Od5f7]} Qe5 $2 {[%emt 0:00:05][%mdl 8192]} (32... Ne5 $16 {is tougher.} 33. Qb2 Re8) 33. Kg2 $18 {[%emt 0:00:02][%cal Od5f7]} Rd6 {[%emt 0:00:06]} (33... Be7 $142 34. Qd4 Qxd4 35. Rxd4 g5 36. hxg5 hxg5) 34. Qf4 {[%emt 0:00:07]} (34. Qa5 $142) 34... Qh5 {[%emt 0:00:02]} (34... Qxf4 $142 35. gxf4 Nf6) 35. e5 {[%emt 0:00:14]} Ne3+ {[%emt 0:00:05] Weighted Error Value: White=0.53/Black=0.55.  Loses game:     	---       	Black=2      Mistake:       	White=2     	Black=2      Inaccurate:     	White=3     	Black=1      OK:         	White=12    	Black=4      Best:        	White=1     	Black=1} 1-0

[Event "Indian Blitz Championship 2023"]
[Site "Nashik"]
[Date "2024.03.07"]
[Round "6.4"]
[White "Sai Agni Jeevitesh, J."]
[Black "Dinesh Rajan M"]
[Result "1-0"]
[ECO "D04"]
[WhiteElo "2285"]
[BlackElo "1948"]
[Annotator "TA"]
[PlyCount "141"]
[EventDate "2024.03.07"]
[EventType "blitz"]
[EventCountry "IND"]
[SourceTitle "playchess.com"]
[Source "ChessBase"]
[SourceQuality "1"]
[TimeControl "180+2"]

{[%evp 9,140,-4,0,-22,-33,-30,-28,-19,-33,-24,-25,-36,-12,-20,-21,-27,-27,0,0,-73,0,-15,-6,-53,-43,-62,-10,-7,-4,-4,-10,-5,-11,-18,0,-505,-97,-91,-66,-121,-131,-122,-95,-85,0,0,0,0,7,5,10,10,12,2,8,5,9,10,154,0,0,0,0,0,8,0,0,0,0,0,6,6,11,0,0,0,0,0,0,0,0,0,0,0,0,0,10,25,191,193,218,220,12784,8593,29956,29959,29958,29961,29962,6187,29965,29964,29952,29964,29983,29984,29991,29992,29992,29993,29993,29994,29996,29996,29997,29994,29994,29995,29995,29996,29996,29994,29995,29995,29995,29996,29996,29997,29997,29998,29998,29999,29999]} 1. d4 {[%emt 0:00:01]} d5 {[%emt 0:00:01]} 2. Nf3 {[%emt 0:00:01]} Nf6 {[%emt 0:00:01]} 3. e3 {[%emt 0:00:02]} c5 {[%emt 0:00:01]} 4. dxc5 {[%emt 0:00:03]} e6 {[%emt 0:00:00]} 5. b4 {[%emt 0:00:01]} a5 {[%emt 0:00:03]} 6. c3 {[%emt 0:00:05]} axb4 {[%emt 0:00:04]} 7. cxb4 {[%emt 0:00:00]} b6 $1 {[%emt 0:00:01]} 8. Bb5+ {[%emt 0:00:08] Black has an edge.} Bd7 {[%emt 0:00:01]} 9. Bxd7+ {[%emt 0:00:01]} Nbxd7 {[%emt 0:00:02]} 10. a4 {[%emt 0:00:01]} bxc5 {[%emt 0:00:03]} 11. b5 {[%emt 0:00:01]} Bd6 {[%emt 0:00:04]} 12. Bb2 {[%emt 0:00:00]} O-O {[%emt 0:00:02]} 13. O-O {[%emt 0:00:01]} c4 {[%emt 0:00:01]} 14. Bc3 {[%emt 0:00:13]} (14. Nbd2 $11 Qc7 15. Qc2) 14... Bc7 {[%emt 0:00:07]} (14... Ne4 $17) 15. Nbd2 {[%emt 0:00:14]} e5 {[%emt 0:00:04] Repels Nd4} 16. Bb4 {[%emt 0:00:13]} (16. Qc2 $11) 16... Re8 $15 {[%emt 0:00:01]} 17. e4 {[%emt 0:00:01]} dxe4 {[%emt 0:00:07]} (17... Nxe4 18. Nxe4 dxe4 19. Nd2 $11) (17... Bb6 $15) 18. Ng5 $11 {[%emt 0:00:03]} Nb6 {[%emt 0:00:29]} 19. Ndxe4 {[%emt 0:00:46]} (19. Ngxe4 {simplifies} Nxe4 20. Nxe4 Rxa4 21. Rxa4 Qxd1 22. Rxd1 Nxa4 23. g4) 19... Nxe4 {[%emt 0:00:05]} (19... Nbd5 {is more complex.} 20. Qb1 Nxe4 21. Nxe4 Nf4) 20. Nxe4 {[%emt 0:00:02]} Qxd1 {[%emt 0:00:02]} (20... Rxa4 {simplifies} 21. Rxa4 Qxd1 22. Rxd1 Nxa4 23. g4 Rb8) 21. Rfxd1 {[%emt 0:00:02] Strongly threatening a5.} Nxa4 {[%emt 0:00:03]} (21... Rxa4 {simplifies} 22. Rxa4 Nxa4 23. g4 Rb8) 22. Rd7 $2 {[%emt 0:00:09][%mdl 8192] [#]} (22. Kf1 $11) 22... Nb6 $2 {[%emt 0:00:02]} (22... Nc5 $1 $19 {and Black stays clearly on top.} 23. Rdd1 (23. Rxa8 $2 Rxa8 24. Rd1 Nxe4 $19) 23... Nxe4) 23. Rdd1 $17 {[%emt 0:00:09]} (23. Rxc7 $2 {gets mated.} Rxa1+) 23... Nd5 {[%emt 0:00:07]} 24. Bd6 {[%emt 0:00:09]} (24. Rab1 $15 Red8 25. Bd6 Bxd6 (25... Rxd6 26. Nxd6 Nc3 27. Ra1 $16) 26. Rxd5) 24... Rxa1 {[%emt 0:00:29]} 25. Rxa1 {[%emt 0:00:00] aiming for Bxc7.} f5 {[%emt 0:00:08]} 26. Bxc7 {[%emt 0:00:13]} Nxc7 {[%emt 0:00:09][%mdl 4096] Endgame. KRN-KRN} (26... fxe4 $17 27. Bd6 c3) 27. Nd6 $11 {[%emt 0:00:04][%csl LRc4,LRe8,LRf5][%cal Ob5b6]} Rb8 {[%emt 0:00:01] ...c3 would now be deadly.} 28. Nxc4 {[%emt 0:00:11]} Rxb5 {[%emt 0:00:02]} 29. Nd6 {[%emt 0:00:04][%csl LRb5,LRf5]} Rc5 {[%emt 0:00:14]} 30. Nxf5 {[%emt 0:00:01]} Kf7 {[%emt 0:00:02]} 31. g3 {[%emt 0:00:07]} Ne6 {[%emt 0:00:01]} 32. Ra7+ {[%emt 0:00:02]} Kf6 {[%emt 0:00:01]} 33. Nd6 {[%emt 0:00:04] Threatens to win with Ne4+.} Rd5 {[%emt 0:00:06] [#]} (33... Kg6 $11) 34. Ne4+ $2 {[%emt 0:00:09]} ({White has to play} 34. Ne8+ $1 $16 Kf5 35. Nxg7+ Nxg7 36. Rxg7) 34... Kf5 {[%emt 0:00:04]} 35. f3 {[%emt 0:00:05]} Rd3 {[%emt 0:00:05]} 36. Kg2 {[%emt 0:00:08]} h5 {[%emt 0:00:21]} 37. h3 {[%emt 0:00:00]} h4 {[%emt 0:00:13]} 38. gxh4 {[%emt 0:00:16]} Nf4+ {[%emt 0:00:03]} 39. Kg3 {[%emt 0:00:02]} Nh5+ {[%emt 0:00:03]} 40. Kf2 {[%emt 0:00:02]} Rb3 {[%emt 0:00:14]} 41. Ng3+ {[%emt 0:00:18]} Nxg3 {[%emt 0:00:06]} 42. Kxg3 {[%emt 0:00:01] KR-KR} e4 {[%emt 0:00:03]} 43. Rxg7 {[%emt 0:00:06]} Rxf3+ {[%emt 0:00:02]} 44. Kg2 {[%emt 0:00:01]} Ra3 {[%emt 0:00:01]} 45. Re7 {[%emt 0:00:03]} Kf4 {[%emt 0:00:03]} 46. Rf7+ {[%emt 0:00:01]} Ke3 {[%emt 0:00:06]} 47. h5 {[%emt 0:00:01]} Ra5 {[%emt 0:00:03]} 48. h6 {[%emt 0:00:02]} Rg5+ $2 {[%emt 0:00:02]} (48... Kd2 $11 {and Black is okay.}) 49. Kh2 $18 {[%emt 0:00:00] Black must now prevent h7.} Rh5 {[%emt 0:00:03]} 50. h7 {[%emt 0:00:01] Kg3 is the strong threat.} Kd2 $2 {[%emt 0:00:08]} (50... Kd4 51. Kg3 e3) 51. Rd7+ {[%emt 0:00:01]} Ke2 {[%emt 0:00:01]} 52. Kg3 {[%emt 0:00:01]} e3 {[%emt 0:00:02]} 53. Kg4 {[%emt 0:00:00]} Rh6 {[%emt 0:00:00]} 54. h4 {[%emt 0:00:03] Threatening mate with Kg5.} Kf2 {[%emt 0:00:03]} 55. Rf7+ {[%emt 0:00:03] White mates.} Kg2 {[%emt 0:00:04]} 56. Re7 {[%emt 0:00:11]} Kf2 {[%emt 0:00:17]} 57. Kg5 {[%emt 0:00:00]} Ra6 {[%emt 0:00:01]} 58. h8=Q {[%emt 0:00:02]} Ra5+ {[%emt 0:00:01]} 59. Kg4 {[%emt 0:00:03]} Ra4+ {[%emt 0:00:01]} 60. Kh3 {[%emt 0:00:01]} e2 {[%emt 0:00:01]} 61. Qf6+ {[%emt 0:00:02]} Kg1 {[%emt 0:00:03]} 62. Rxe2 {[%emt 0:00:05][%cal Re2e1]} Ra3+ {[%emt 0:00:01]} 63. Kg4 {[%emt 0:00:01]} Ra4+ {[%emt 0:00:01]} 64. Kh5 {[%emt 0:00:01]} Ra5+ {[%emt 0:00:01]} 65. Re5 {[%emt 0:00:01]} Ra2 {[%emt 0:00:03]} 66. Qg5+ {[%emt 0:00:03]} Rg2 {[%emt 0:00:02]} 67. Re1+ {[%emt 0:00:02]} Kh2 {[%emt 0:00:00]} 68. Qf4+ {[%emt 0:00:01]} Rg3 {[%emt 0:00:01]} 69. Re2+ {[%emt 0:00:01]} Kh1 {[%emt 0:00:01]} 70. Qf1+ {[%emt 0:00:04]} Rg1 {[%emt 0:00:01]} 71. Qh3# {[%emt 0:00:01] Never resign too early!   Weighted Error Value: White=0.23 (precise) /Black=0.54.  Loses game:     	White=1     	Black=1      Missed win:     	---       	Black=1      Mistake:       	White=4     	Black=5      Inaccurate:     	White=1     	Black=1      OK:         	White=16    	Black=15     Best:        	White=5     	Black=3      Strong:       	---       	Black=1} 1-0

[Event "Indian Blitz Championship 2023"]
[Site "Nashik"]
[Date "2024.03.07"]
[Round "6.5"]
[White "Ghosh, Diptayan"]
[Black "Vignesh B"]
[Result "1-0"]
[ECO "D78"]
[WhiteElo "2559"]
[BlackElo "2209"]
[Annotator "TA"]
[PlyCount "91"]
[EventDate "2024.03.07"]
[EventType "blitz"]
[EventCountry "IND"]
[SourceTitle "playchess.com"]
[Source "ChessBase"]
[SourceQuality "1"]
[TimeControl "180+2"]

{[%evp 15,91,36,50,60,62,54,54,32,64,62,91,68,70,72,82,87,110,75,127,113,157,147,177,164,178,162,279,275,293,273,343,298,359,356,354,358,343,342,422,416,428,424,539,572,1389,1384,1381,1306,1580,1504,29979,662,29983,29983,29995,1020,1021,1011,922,808,754,562,710,712,701,701,637,688,679,649,817,806,974,945,1545,1542,5695,5336]} 1. Nf3 {[%emt 0:00:02]} Nf6 {[%emt 0:03:04]} 2. g3 {[%emt 0:00:05]} d5 {[%emt 0:00:00]} 3. Bg2 {[%emt 0:00:01]} g6 {[%emt 0:00:00]} 4. d4 {[%emt 0:00:02]} Bg7 {[%emt 0:00:00]} 5. c4 {[%emt 0:00:01]} O-O {[%emt 0:00:00]} 6. O-O {[%emt 0:00:02]} dxc4 {[%emt 0:00:00]} 7. Na3 {[%emt 0:00:02]} c6 {[%emt 0:00:00]} 8. Nxc4 {[%emt 0:00:01]} Nbd7 {[%emt 0:00:00]} 9. b3 {[%emt 0:00:03]} Nb6 {[%emt 0:00:00]} 10. Bb2 {[%emt 0:00:02]} Bf5 {[%emt 0:00:00]} 11. Rc1 {[%emt 0:00:03] White is slightly better.} Be4 {[%emt 0:00:00]} 12. Ncd2 {[%emt 0:00:04]} Bf5 {[%emt 0:00:00][%cal Be4f5,Bf5c8,Bc8d7][%mdl 32]} 13. Nh4 {[%emt 0:00:12]} Bc8 {[%emt 0:00:00]} 14. e4 {[%emt 0:00:06] White leaves nothing to chance now.} a5 {[%emt 0:00:00]} 15. a4 {[%emt 0:00:03]} Re8 {[%emt 0:00:00]} 16. h3 {[%emt 0:00:07]} Nh5 {[%emt 0:00:00]} ({Better is} 16... Nfd7) 17. Nhf3 $16 {[%emt 0:00:03]} h6 {[%emt 0:00:00]} 18. Qc2 {[%emt 0:00:04]} Bd7 {[%emt 0:00:00]} 19. Rfd1 {[%emt 0:00:04]} Rc8 {[%emt 0:00:00]} 20. Ne5 {[%emt 0:00:07]} Bxe5 {[%emt 0:00:00]} (20... Be6 {was called for.} 21. Nd3 Ra8) 21. dxe5 $18 {[%emt 0:00:02]} Qc7 {[%emt 0:00:00]} 22. Qc5 {[%emt 0:00:11]} Ra8 {[%emt 0:00:02]} 23. Bc3 {[%emt 0:00:08]} Nc8 {[%emt 0:00:08]} 24. Qe3 {[%emt 0:00:04]} Kh7 {[%emt 0:00:06]} 25. f4 {[%emt 0:00:02][%cal Bf2f4,Bf4f5][%mdl 32]} Ng7 {[%emt 0:00:08]} 26. g4 {[%emt 0:00:01]} b5 {[%emt 0:00:16]} 27. f5 {[%emt 0:00:13]} bxa4 {[%emt 0:00:06]} 28. bxa4 {[%emt 0:00:01]} ({Less strong is} 28. e6 Nxe6 29. fxe6 Bxe6 30. bxa4 Nb6 $18) 28... c5 {[%emt 0:00:01] [#]} 29. e6 $1 {[%emt 0:00:20][%mdl 512]} fxe6 {[%emt 0:00:02]} (29... Nxe6 30. fxe6) 30. fxg6+ {[%emt 0:00:01]} Kxg6 {[%emt 0:00:01]} 31. Nf3 {[%emt 0:00:01]} Bxa4 {[%emt 0:00:06]} 32. Rf1 {[%emt 0:00:02] Intending Nh4+ and mate.} Nd6 {[%emt 0:00:01]} 33. Ne5+ {[%emt 0:00:04]} Kh7 {[%emt 0:00:01]} 34. g5 {[%emt 0:00:01]} Rf8 {[%emt 0:00:05]} 35. gxh6 {[%emt 0:00:04]} (35. g6+ $142 Kg8 36. Qxh6 Rxf1+ 37. Bxf1 (37. Rxf1 Ndf5 38. Qh7+ Kf8 39. Qh8#) 37... Nxe4 38. Qh7+ Kf8 39. Qh8#) 35... Nh5 {[%emt 0:00:01] White is clearly winning.} 36. Qg5 {[%emt 0:00:02]} Rf6 {[%emt 0:00:03] Inhibits Qg6+.} 37. Qxh5 {[%emt 0:00:04] [#] White threatens Rxf6 and mate.} Rg8 {[%emt 0:00:01]} 38. Ng4 {[%emt 0:00:04]} Rxf1+ {[%emt 0:00:03]} 39. Rxf1 {[%emt 0:00:01]} Be8 {[%emt 0:00:01] Wards off Rf7+} 40. Qe5 {[%emt 0:00:09]} Nb5 {[%emt 0:00:02]} 41. Qxc7 {[%emt 0:00:15]} Nxc7 {[%emt 0:00:01]} 42. Bxa5 {[%emt 0:00:01]} Nb5 {[%emt 0:00:02]} 43. Rc1 {[%emt 0:01:23]} Nd6 {[%emt 0:00:04]} 44. Rxc5 {[%emt 0:00:00]} Bg6 {[%emt 0:00:01]} 45. Rc7 {[%emt 0:00:00]} Re8 {[%emt 0:00:01]} 46. Nf6+ {[%emt 0:00:00] Weighted Error Value: White=0.55/Black=0.55.  Mistake:       	---       	Black=2      Inaccurate:     	White=1     	Black=4      OK:         	White=8     	Black=4      Best:        	White=2     	Black=1} 1-0